bitfinex/quotes_SOLUSD_20220117
["timestamp","ask_amount","ask_price","bid_price","bid_amount"]
[1642454738239,0.26,138.48,138.43,23.4408457]
[1642454738542,4.1041094,138.49,138.44,11.0818]
[1642454738740,4.3641094,138.49,138.44,11.0818]
[1642454739239,52.58857799,138.49,138.44,53.90371181]
[1642454739640,0.26,138.49,138.45,6.6084457]
[1642454739839,10.1041094,138.51,138.45,6.6084457]
[1642454740039,10.3641094,138.51,138.45,6.6084457]
[1642454740643,45.01151221,138.5,138.45,6.6084457]
[1642454740844,51.01151221,138.5,138.45,6.6084457]
[1642454741341,51.27151221,138.5,138.45,6.6084457]
[1642454742145,45.27151221,138.5,138.45,50.88812051]
[1642454742541,51.27151221,138.5,138.45,50.88812051]
[1642454742743,45.27151221,138.5,138.45,6.6084457]
[1642454742942,51.27151221,138.5,138.45,6.6084457]
[1642454744945,45.27151221,138.5,138.45,6.6084457]
[1642454745344,51.27151221,138.5,138.45,6.6084457]
[1642454745745,51.27151221,138.5,138.45,55.3339208]
[1642454745944,6.26,138.5,138.45,66.1648208]
[1642454746145,10.1041094,138.51,138.46,0.25]
[1642454746745,10.1041094,138.51,138.47,6.6084457]
[1642454747172,58.53179695,138.51,138.47,6.6084457]
[1642454747775,54.42768755,138.51,138.47,6.6084457]
[1642454748774,6.0,138.51,138.47,6.6084457]
[1642454748977,6.0,138.51,138.47,17.4377457]
[1642454749175,0.26,138.51,138.47,17.4377457]
[1642454749377,10.1041094,138.52,138.47,17.4377457]
[1642454749576,10.3641094,138.52,138.47,17.4377457]
[1642454749776,10.3641094,138.52,138.48,46.91076254]
[1642454750277,6.26,138.52,138.49,6.6084457]
[1642454750477,6.26,138.52,138.5,6.06439994]
[1642454750676,0.26,138.52,138.5,6.06439994]
[1642454750878,6.0,138.52,138.5,6.06439994]
[1642454751278,10.1041094,138.53,138.5,6.06439994]
[1642454751477,4.1041094,138.53,138.5,6.06439994]
[1642454751677,10.1041094,138.53,138.5,6.06439994]
[1642454751879,10.1041094,138.53,138.49,6.6084457]
[1642454752479,10.1041094,138.53,138.49,56.24889057]
[1642454752681,4.1041094,138.53,138.49,56.24889057]
[1642454752879,4.1041094,138.53,138.49,56.50889057]
[1642454754383,8.22218864,138.55,138.49,56.50889057]
[1642454754586,8.22218864,138.55,138.49,67.33679057]
[1642454755684,8.22218864,138.55,138.5,0.25]
[1642454755889,8.22218864,138.55,138.5,11.0767]
[1642454756087,8.48218864,138.55,138.52,43.03451748]
[1642454756389,8.22218864,138.55,138.53,3.03219997]
[1642454756586,4.1041094,138.55,138.53,3.03219997]
[1642454756987,4.1041094,138.55,138.53,13.85699997]
[1642454757387,4.1041094,138.55,138.53,3.03219997]
[1642454757788,4.1041094,138.57,138.53,3.03219997]
[1642454758288,4.3641094,138.57,138.53,3.03219997]
[1642454759190,4.3641094,138.57,138.54,6.6084457]
[1642454759391,4.3641094,138.57,138.55,3.03219997]
[1642454759589,4.3641094,138.57,138.56,3.03219997]
[1642454760489,4.1041094,138.58,138.56,3.03219997]
[1642454760891,4.1041094,138.58,138.57,3.03219997]
[1642454761890,4.3641094,138.58,138.57,3.03219997]
[1642454762490,4.3641094,138.58,138.57,9.64064567]
[1642454763089,10.3641094,138.58,138.57,9.64064567]
[1642454763290,14.48140582,138.58,138.57,9.64064567]
[1642454764094,8.48140582,138.58,138.57,9.64064567]
[1642454764292,14.22140582,138.58,138.57,9.64064567]
[1642454764494,8.22140582,138.58,138.57,9.64064567]
[1642454766527,4.1041094,138.59,138.57,9.64064567]
[1642454766738,6.26,138.58,138.57,9.64064567]
[1642454767127,10.3641094,138.58,138.57,12.67284564]
[1642454767528,46.5960553,138.58,138.57,12.67284564]
[1642454767728,46.5960553,138.58,138.57,6.6084457]
[1642454767929,8.48140582,138.58,138.57,6.6084457]
[1642454768529,8.48140582,138.58,138.54,6.6084457]
[1642454769735,8.48140582,138.58,138.54,47.39153647]
[1642454769930,0.26,138.58,138.54,47.39153647]
[1642454770329,53.73600899,138.59,138.54,47.39153647]
[1642454770534,53.73600899,138.59,138.54,6.6084457]
[1642454771531,53.73600899,138.59,138.54,54.92594301]
[1642454771730,4.1041094,138.59,138.54,54.92594301]
[1642454772133,4.1041094,138.59,138.55,0.309839]
[1642454772532,4.1041094,138.59,138.56,6.6084457]
[1642454772832,4.1041094,138.59,138.57,48.09096086]
[1642454773232,4.3641094,138.59,138.57,48.09096086]
[1642454774833,4.3641094,138.59,138.57,6.06439994]
[1642454775733,4.3641094,138.59,138.58,6.6084457]
[1642454777635,8.48116957,138.59,138.58,6.6084457]
[1642454778734,8.22116957,138.59,138.56,6.6084457]
[1642454779336,4.1041094,138.59,138.57,6.06439994]
[1642454781241,4.3641094,138.59,138.57,6.06439994]
[1642454781439,4.3641094,138.59,138.56,6.6084457]
[1642454781841,0.26,138.59,138.56,6.6084457]
[1642454782039,14.22116957,138.6,138.56,6.6084457]
[1642454782241,14.48116957,138.6,138.56,6.6084457]
[1642454782840,8.22116957,138.59,138.56,6.6084457]
[1642454783239,14.22116957,138.59,138.56,6.6084457]
[1642454783440,52.0,138.58,138.55,0.309839]
[1642454783840,47.39953621,138.57,138.55,0.309839]
[1642454784240,53.39953621,138.57,138.55,0.309839]
[1642454785942,6.0,138.57,138.49,41.44496388]
[1642454786342,102.2583,138.58,138.49,41.44496388]
[1642454787042,39.76366759,138.57,138.49,41.44496388]
[1642454787244,45.76366759,138.57,138.49,41.44496388]
[1642454787445,117.65366759,138.57,138.49,41.44496388]
[1642454787644,128.48246759,138.57,138.49,41.44496388]
[1642454788143,132.58657699,138.57,138.49,41.44496388]
[1642454790747,132.84657699,138.57,138.49,41.44496388]
[1642454793151,80.11158753,138.56,138.49,41.44496388]
[1642454793349,86.11158753,138.56,138.49,41.44496388]
[1642454793550,86.11158753,138.56,138.48,10.8283]
[1642454793850,96.20227924,138.56,138.47,24.8979]
[1642454794050,92.08480111,138.56,138.47,24.8979]
[1642454794451,116.29500111,138.56,138.46,23.8728]
[1642454794749,123.78200111,138.56,138.47,0.25]
[1642454796450,4.11772906,138.55,138.47,0.25]
[1642454796750,71.89,138.53,138.47,0.25]
[1642454797150,78.15,138.53,138.47,0.25]
[1642454799650,78.15,138.53,138.46,23.8728]
[1642454800352,6.26,138.53,138.46,34.7031]
[1642454800551,6.0,138.53,138.46,34.7031]
[1642454800750,42.22347613,138.54,138.46,34.7031]
[1642454804359,42.48347613,138.54,138.46,34.7031]
[1642454806261,42.48347613,138.54,138.47,0.25]
[1642454806464,33.8661,138.53,138.47,0.25]
[1642454806865,39.8661,138.53,138.48,42.46323933]
[1642454807984,34.1261,138.53,138.48,42.46323933]
[1642454808384,40.1261,138.53,138.48,42.46323933]
[1642454808586,34.1261,138.53,138.48,42.46323933]
[1642454808784,40.1261,138.53,138.48,42.46323933]
[1642454808986,34.1261,138.53,138.48,42.46323933]
[1642454809585,40.1261,138.53,138.48,42.46323933]
[1642454809989,34.1261,138.53,138.48,42.46323933]
[1642454810285,40.1261,138.53,138.48,42.46323933]
[1642454810486,34.1261,138.53,138.47,11.0793]
[1642454810686,40.1261,138.53,138.47,11.0793]
[1642454811590,40.1261,138.53,138.47,46.87081162]
[1642454812591,40.1261,138.53,138.47,46.62081162]
[1642454814604,34.1261,138.53,138.47,46.62081162]
[1642454815202,34.1261,138.53,138.48,10.8287]
[1642454815400,34.1261,138.53,138.48,11.0787]
[1642454816103,43.52229793,138.52,138.47,35.79151162]
[1642454816303,43.52229793,138.52,138.46,23.8728]
[1642454816507,51.12429793,138.52,138.44,24.4853]
[1642454816706,80.97999793,138.52,138.44,24.4853]
[1642454817305,80.97999793,138.52,138.44,65.60834708]
[1642454818402,80.97999793,138.52,138.44,24.4853]
[1642454818603,91.81259793,138.52,138.44,35.3167]
[1642454819606,163.70259793,138.52,138.44,35.3167]
[1642454819807,91.81259793,138.52,138.44,10.8314]
[1642454820008,1.25350403,138.51,138.42,10.833]
[1642454820208,10.8343,138.5,138.39,24.6414]
[1642454820408,71.89,138.48,138.39,24.6414]
[1642454820607,80.257,138.48,138.39,24.6414]
[1642454820808,35.52288133,138.47,138.39,28.38932896]
[1642454821007,35.52288133,138.47,138.39,24.6414]
[1642454821207,41.52288133,138.47,138.39,24.6414]
[1642454821407,113.41288133,138.47,138.39,24.6414]
[1642454821609,124.24948133,138.47,138.39,24.6414]
[1642454822006,124.24948133,138.47,138.38,34.8789]
[1642454822207,126.00568091,138.47,138.33,403.68637228]
[1642454822408,71.89,138.45,138.35,10.29]
[1642454822611,79.101,138.45,138.35,10.29]
[1642454822810,85.101,138.45,138.35,10.29]
[1642454823014,44.08487378,138.44,138.35,53.09029458]
[1642454823412,60.92387378,138.44,138.35,21.1283]
[1642454823612,61.18387378,138.44,138.35,21.1283]
[1642454824610,61.18387378,138.44,138.35,24.87535451]
[1642454826344,6.26,138.44,138.36,0.25]
[1642454826542,0.26,138.44,138.38,10.8363]
[1642454826944,30.6658,138.46,138.38,10.8363]
[1642454827442,34.9705773,138.45,138.38,46.05219697]
[1642454827842,40.9705773,138.45,138.38,46.05219697]
[1642454829244,41.2305773,138.45,138.38,46.05219697]
[1642454834658,6.0,138.45,138.38,46.05219697]
[1642454834856,30.5262,138.48,138.4,10.834]
[1642454835055,6.0,138.48,138.4,10.834]
[1642454835256,18.05130403,138.51,138.41,0.25]
[1642454835657,59.42674273,138.51,138.41,40.60063697]
[1642454835857,59.42674273,138.51,138.41,40.86063697]
[1642454836262,59.42674273,138.51,138.41,40.60063697]
[1642454836458,59.42674273,138.51,138.43,10.8318]
[1642454837088,71.89,138.5,138.43,10.8318]
[1642454837291,6.0,138.5,138.43,10.8318]
[1642454838089,71.96974273,138.51,138.41,51.18433697]
[1642454838289,71.70974273,138.51,138.41,51.18433697]
[1642454838692,71.89,138.5,138.41,40.35063697]
[1642454838989,77.89,138.5,138.41,40.35063697]
[1642454839190,88.7242,138.5,138.41,40.35063697]
[1642454839391,88.7242,138.5,138.41,6.48453697]
[1642454839792,88.7242,138.5,138.4,10.8349]
[1642454840691,88.7242,138.5,138.38,21.1259]
[1642454840892,42.97230401,138.48,138.38,10.8359]
[1642454841093,42.88169396,138.45,138.38,10.8359]
[1642454841293,48.88169396,138.45,138.39,2.03902509]
[1642454841892,49.14169396,138.45,138.39,2.03902509]
[1642454842296,121.03169396,138.45,138.38,2.03902509]
[1642454843295,121.03169396,138.45,138.37,24.95092509]
[1642454843695,131.86939396,138.45,138.37,24.95092509]
[1642454843896,59.97939396,138.45,138.37,24.95092509]
[1642454845696,59.97939396,138.45,138.37,2.03902509]
[1642454846097,51.20148851,138.45,138.37,12.87602509]
[1642454846499,51.20148851,138.45,138.37,48.37881298]
[1642454846895,51.20148851,138.45,138.38,0.25]
[1642454847098,51.20148851,138.45,138.37,37.80181298]
[1642454847299,49.14169396,138.45,138.38,13.12472509]
[1642454848098,49.14169396,138.45,138.39,2.03902509]
[1642454849600,49.14169396,138.45,138.4,39.21903225]
[1642454852701,49.14169396,138.45,138.39,12.87442509]
[1642454854106,49.14169396,138.45,138.39,10.8354]
[1642454855108,49.14169396,138.45,138.39,12.87442509]
[1642454857411,6.0,138.45,138.39,12.87442509]
[1642454857613,6.0,138.45,138.4,0.25]
[1642454857821,6.0,138.45,138.41,10.8338]
[1642454858413,52.44921997,138.45,138.39,2.03902509]
[1642454858614,46.44921997,138.45,138.39,2.03902509]
[1642454858915,52.44921997,138.45,138.39,2.03902509]
[1642454859618,52.44921997,138.45,138.39,12.87412509]
[1642454859815,52.44921997,138.45,138.4,0.25]
[1642454860018,6.0,138.45,138.4,0.25]
[1642454860418,32.16029455,138.48,138.4,0.25]
[1642454861019,45.44883841,138.47,138.4,0.25]
[1642454861220,45.44883841,138.47,138.39,2.03902509]
[1642454861419,51.44883841,138.47,138.39,2.03902509]
[1642454861722,51.44883841,138.47,138.4,10.8344]
[1642454862321,51.44883841,138.47,138.4,12.87342509]
[1642454862520,123.33883841,138.47,138.4,2.03902509]
[1642454862822,134.17483841,138.47,138.4,2.03902509]
[1642454863223,134.17483841,138.47,138.39,2.03902509]
[1642454864239,62.28483841,138.47,138.39,2.03902509]
[1642454865740,64.04103799,138.47,138.39,2.03902509]
[1642454865940,71.89,138.46,138.39,2.03902509]
[1642454866141,71.89,138.43,138.39,2.03902509]
[1642454866340,116.45853574,138.42,138.39,2.03902509]
[1642454866751,122.45853574,138.42,138.39,2.03902509]
[1642454866942,122.45853574,138.42,138.36,2.03902509]
[1642454867543,133.29873574,138.42,138.36,2.03902509]
[1642454867952,141.08973574,138.42,138.36,2.03902509]
[1642454868743,141.08973574,138.42,138.35,2.03902509]
[1642454868744,141.34973574,138.42,138.35,2.03902509]
[1642454870143,143.40953029,138.42,138.33,2.03902509]
[1642454870345,167.43163029,138.42,138.33,2.03902509]
[1642454871143,87.75063029,138.42,138.33,2.03902509]
[1642454871346,85.69083574,138.42,138.34,2.03902509]
[1642454871544,85.69083574,138.42,138.35,39.10628682]
[1642454872143,85.43083574,138.42,138.35,39.10628682]
[1642454872946,157.32083574,138.42,138.32,2.03902509]
[1642454874048,157.32083574,138.42,138.32,42.80477963]
[1642454874249,157.32083574,138.42,138.32,40.76575454]
[1642454875850,41.1223,138.42,138.33,0.25]
[1642454876051,30.2821,138.42,138.33,0.25]
[1642454876253,30.2821,138.42,138.34,1.64385045]
[1642454876653,30.2821,138.42,138.35,0.25]
[1642454876852,37.89013923,138.41,138.33,0.25]
[1642454877254,43.89013923,138.41,138.33,0.25]
[1642454877654,43.89013923,138.41,138.36,10.8377]
[1642454878057,6.0,138.41,138.37,0.25]
[1642454878259,33.3996,138.46,138.37,0.25]
[1642454878464,39.3996,138.46,138.37,0.25]
[1642454879061,36.35423799,138.45,138.37,0.25]
[1642454879263,42.61423799,138.45,138.36,24.9394]
[1642454879663,42.61423799,138.45,138.38,42.575408]
[1642454879864,42.35423799,138.45,138.38,42.575408]
[1642454881567,42.35423799,138.45,138.38,53.411708]
[1642454882289,42.61423799,138.45,138.38,53.411708]
[1642454883999,42.61423799,138.45,138.38,10.8363]
[1642454884191,53.45183799,138.45,138.36,24.6794]
[1642454884994,71.89,138.44,138.36,24.6794]
[1642454885198,10.8392,138.43,138.36,24.6794]
[1642454885393,45.95714209,138.42,138.36,26.71842509]
[1642454885796,51.95714209,138.42,138.36,26.71842509]
[1642454888098,51.95714209,138.42,138.36,70.24952034]
[1642454888900,52.21714209,138.42,138.36,70.24952034]
[1642454889103,52.21714209,138.42,138.36,26.71842509]
[1642454889300,52.21714209,138.42,138.37,2.03902509]
[1642454891002,52.21714209,138.42,138.36,37.55612509]
[1642454891802,52.21714209,138.42,138.37,2.03902509]
[1642454892803,52.21714209,138.42,138.36,24.6794]
[1642454893202,52.21714209,138.42,138.34,2.03902509]
[1642454893405,71.89,138.41,138.34,2.03902509]
[1642454893809,77.89,138.41,138.34,2.03902509]
[1642454894505,40.37070555,138.38,138.31,2.03902509]
[1642454894705,71.89,138.37,138.31,2.03902509]
[1642454894906,77.89,138.37,138.31,2.03902509]
[1642454895504,6.0,138.37,138.31,2.03902509]
[1642454895704,53.05270555,138.38,138.31,2.03902509]
[1642454897309,53.31270555,138.38,138.31,2.03902509]
[1642454897508,64.15580555,138.38,138.31,2.03902509]
[1642454897711,64.15580555,138.38,138.29,29.52739094]
[1642454897909,71.89,138.37,138.29,29.52739094]
[1642454898309,77.89,138.37,138.29,29.52739094]
[1642454899609,48.42384499,138.35,138.29,29.52739094]
[1642454899810,62.54084499,138.35,138.29,5.78909094]
[1642454900410,62.54084499,138.35,138.29,2.03902509]
[1642454900614,71.89,138.34,138.29,2.03902509]
[1642454900811,6.0,138.34,138.29,2.03902509]
[1642454901211,6.26,138.34,138.29,2.03902509]
[1642454901610,0.26,138.34,138.29,2.03902509]
[1642454901811,62.80084499,138.35,138.29,2.03902509]
[1642454902511,14.377,138.35,138.3,37.57508419]
[1642454902711,6.26,138.35,138.3,37.57508419]
[1642454902916,0.26,138.35,138.3,37.57508419]
[1642454903113,25.70649306,138.37,138.3,37.57508419]
[1642454903312,31.70649306,138.37,138.3,37.57508419]
[1642454903515,42.55029306,138.37,138.31,2.03902509]
[1642454903713,48.55191546,138.36,138.31,2.03902509]
[1642454904112,54.55191546,138.36,138.31,2.03902509]
[1642454904312,6.0,138.36,138.31,2.03902509]
[1642454904714,41.2736,138.37,138.31,2.03902509]
[1642454904916,6.0,138.37,138.31,2.03902509]
[1642454905416,0.26,138.37,138.32,2.28902509]
[1642454905616,0.26,138.37,138.33,44.07137278]
[1642454905815,6.26,138.38,138.33,44.07137278]
[1642454906416,0.26,138.38,138.33,46.11039787]
[1642454906616,6.26,138.38,138.33,46.11039787]
[1642454906916,55.36964738,138.38,138.33,2.03902509]
[1642454907116,66.21264738,138.38,138.33,2.03902509]
[1642454908219,71.89,138.37,138.33,2.03902509]
[1642454908418,1.34191217,138.32,138.31,4.12145681]
[1642454908620,8.20691217,138.32,138.31,4.12145681]
[1642454908823,14.20691217,138.32,138.3,4.12035298]
[1642454909023,46.00300899,138.31,138.3,4.12035298]
[1642454909222,14.46691217,138.32,138.26,6.03333572]
[1642454909432,6.0,138.31,138.2,20.59835126]
[1642454909626,41.0,138.29,138.17,425.06932436]
[1642454909822,41.0,138.29,138.21,6.18471084]
[1642454909823,54.493,138.29,138.21,6.18471084]
[1642454910021,54.493,138.29,138.17,425.06932436]
[1642454910022,71.89,138.27,138.17,425.06932436]
[1642454910223,10.29,138.26,138.15,10.3078514]
[1642454910424,49.01032354,138.25,138.15,10.3078514]
[1642454910623,50.0,138.21,138.1,15.05382122]
[1642454910824,10.29,138.2,138.1,14.55382122]
[1642454911227,16.29,138.2,138.1,14.55382122]
[1642454911428,81.44775161,138.19,138.1,14.55382122]
[1642454911624,10.8599,138.18,138.11,42.18546229]
[1642454911827,16.8599,138.18,138.11,42.18546229]
[1642454912025,72.79,138.26,138.11,43.82974286]
[1642454912226,10.29,138.25,138.12,1.64428057]
[1642454912428,36.1858,138.26,138.13,10.29]
[1642454912625,10.8551,138.23,138.13,10.54]
[1642454912827,36.84082188,138.25,138.14,49.11163435]
[1642454913024,71.89,138.27,138.14,49.11163435]
[1642454913324,71.89,138.27,138.15,1.89428057]
[1642454913727,77.89,138.27,138.16,1.64428057]
[1642454914124,47.98641601,138.26,138.17,48.97450901]
[1642454914325,53.98641601,138.26,138.17,48.97450901]
[1642454914624,6.0,138.26,138.22,9.47060572]
[1642454914825,77.89,138.29,138.22,9.47060572]
[1642454915226,71.89,138.29,138.22,9.47060572]
[1642454915431,11.63191217,138.32,138.22,9.47060572]
[1642454915623,36.23975299,138.28,138.22,9.47060572]
[1642454915852,47.80011217,138.32,138.22,9.47060572]
[1642454916055,10.29,138.32,138.22,9.47060572]
[1642454916853,37.88314098,138.31,138.22,9.47060572]
[1642454917053,10.29,138.3,138.22,9.47060572]
[1642454917254,10.55,138.3,138.22,9.47060572]
[1642454917455,10.29,138.3,138.22,9.47060572]
[1642454917755,16.29,138.3,138.22,9.47060572]
[1642454917954,16.29,138.3,138.22,20.31940572]
[1642454918154,10.29,138.3,138.22,20.31940572]
[1642454918556,71.89,138.29,138.22,9.47060572]
[1642454918755,35.5906838,138.28,138.22,9.47060572]
[1642454919362,52.7021838,138.28,138.22,9.47060572]
[1642454919758,52.7021838,138.28,138.16,95.20116286]
[1642454919957,52.7021838,138.28,138.25,9.47060572]
[1642454920156,94.0,138.26,138.12,1.64029109]
[1642454920358,10.8558,138.22,138.12,10.29]
[1642454920560,10.8558,138.22,138.1,57.3829]
[1642454920561,18.1728,138.22,138.1,57.3829]
[1642454920759,24.1728,138.22,138.1,57.3829]
[1642454921063,37.23982864,138.21,138.11,35.04795053]
[1642454921257,37.23982864,138.21,138.1,10.8579]
[1642454921258,43.23982864,138.21,138.1,10.8579]
[1642454921563,10.858,138.19,138.08,21.1495]
[1642454921758,71.89,138.18,138.08,21.1495]
[1642454921958,71.89,138.18,138.08,10.29]
[1642454922161,71.89,138.18,138.07,0.08810297]
[1642454922162,79.64619958,138.18,138.07,3.86326982]
[1642454922359,37.50220482,138.17,138.07,3.86326982]
[1642454922559,37.50220482,138.17,138.07,0.08810297]
[1642454922758,43.50220482,138.17,138.07,0.08810297]
[1642454923159,43.50220482,138.17,138.05,3.77563102]
[1642454923361,10.8605,138.16,138.05,14.63803102]
[1642454923761,16.8605,138.16,138.03,400.86088243]
[1642454923963,16.8605,138.16,138.03,404.63630971]
[1642454924168,16.8605,138.16,138.04,38.75985048]
[1642454924564,17.1205,138.16,138.04,38.75985048]
[1642454925173,17.1205,138.16,138.03,404.63630971]
[1642454925376,0.3128351,138.12,138.03,394.34630971]
[1642454925567,7.8818351,138.12,138.03,327.01090621]
[1642454925767,7.8818351,138.12,138.03,232.65827274]
[1642454925768,10.8703,138.1,138.03,232.65827274]
[1642454925967,11.0,138.01,138.0,41.25714271]
[1642454926168,16.8265233,138.01,137.94,0.02574675]
[1642454926469,22.8265233,138.01,137.94,0.02574675]
[1642454926670,10.8742,137.99,137.92,0.03191558]
[1642454926870,68.3362,137.99,137.89,11.49115196]
[1642454927168,72.59140054,137.98,137.83,916.75478781]
[1642454927368,0.31573468,137.92,137.82,41.00454991]
[1642454927568,6.0,137.98,137.82,41.00454991]
[1642454927767,10.8769,137.96,137.82,34.50454991]
[1642454927968,10.29,137.95,137.83,40.30854584]
[1642454928168,16.29,137.96,137.83,38.6709071]
[1642454928373,5.97,137.95,137.83,38.6709071]
[1642454928768,21.1683,137.94,137.83,38.6709071]
[1642454928970,21.1683,137.94,137.84,3.77795406]
[1642454929175,21.4283,137.94,137.83,38.6709071]
[1642454930372,27.4283,137.94,137.83,38.6709071]
[1642454930972,1.75619958,137.93,137.8,0.07982]
[1642454931173,10.8833,137.9,137.8,0.07982]
[1642454931374,10.29,137.89,137.8,0.07982]
[1642454931777,1.75619958,137.88,137.8,0.07982]
[1642454931973,20.14566531,137.86,137.71,47.77250244]
[1642454932173,10.889,137.82,137.71,58.66040244]
[1642454932373,16.889,137.82,137.71,58.66040244]
[1642454932572,16.889,137.82,137.71,47.77250244]
[1642454932774,16.889,137.82,137.71,47.64428872]
[1642454932974,16.889,137.82,137.71,44.14428872]
[1642454933175,17.149,137.82,137.71,44.14428872]
[1642454933378,27.439,137.82,137.71,44.14428872]
[1642454933774,29.19519958,137.82,137.71,44.14428872]
[1642454933979,28.93519958,137.82,137.71,44.14428872]
[1642454934376,27.179,137.82,137.71,44.14428872]
[1642454934780,28.93519958,137.82,137.71,44.14428872]
[1642454936577,27.179,137.82,137.71,44.14428872]
[1642454936775,21.179,137.82,137.71,44.14428872]
[1642454936977,21.179,137.83,137.72,115.0]
[1642454937275,10.29,137.87,137.73,0.25]
[1642454937475,10.8864,137.84,137.73,72.10570652]
[1642454937676,10.29,137.87,137.74,1.62602029]
[1642454937875,10.29,137.87,137.75,11.1347]
[1642454938077,117.1284,137.94,137.75,17.1227]
[1642454938276,10.29,137.96,137.76,1.62602029]
[1642454938475,7.54677699,137.97,137.77,10.29]
[1642454938676,10.8802,137.93,137.77,139.45161276]
[1642454938878,440.29491662,138.02,137.8,128.59]
[1642454939076,432.75052115,138.02,137.81,81.87907832]
[1642454939279,432.75052115,138.02,137.82,128.59]
[1642454939478,477.82512861,138.02,137.83,50.31360802]
[1642454939678,432.75052115,138.02,137.84,128.59]
[1642454939876,432.75052115,138.02,137.85,10.54]
[1642454940077,432.75052115,138.02,137.85,140.75602029]
[1642454940277,113.7464,138.05,137.85,147.01602029]
[1642454940476,10.29,138.07,137.86,1.62602029]
[1642454940678,35.80363357,138.04,137.87,10.29]
[1642454940877,35.80363357,138.04,137.87,10.8]
[1642454940878,10.8723,138.03,137.87,10.8]
[1642454941077,10.8723,138.03,137.88,1.62602029]
[1642454941281,10.29,138.08,137.89,10.54]
[1642454941478,10.29,138.08,137.89,146.785]
[1642454941680,10.29,138.11,137.9,130.5289114]
[1642454941877,10.8692,138.07,137.94,10.8699]
[1642454942105,43.27641039,138.06,137.95,10.29]
[1642454942279,49.27641039,138.06,137.96,37.90176746]
[1642454942676,6.0,138.06,137.96,37.90176746]
[1642454942877,6.0,138.09,137.96,48.19176746]
[1642454943079,6.0,138.09,137.96,59.06056746]
[1642454943279,6.0,138.11,137.96,59.06056746]
[1642454943481,6.0,138.11,137.96,65.31156746]
[1642454943781,49.08705852,138.12,137.97,0.25]
[1642454943980,49.08705852,138.12,137.98,10.29]
[1642454944181,10.8666,138.11,137.99,10.8662]
[1642454944381,16.8666,138.11,138.0,10.29]
[1642454945183,10.8676,138.09,138.0,10.29]
[1642454945383,17.1276,138.09,137.96,10.29]
[1642454945583,17.1276,138.09,137.94,10.29]
[1642454945981,18.88379958,138.09,137.94,10.29]
[1642454946182,18.88379958,138.09,137.95,44.72966419]
[1642454946381,71.89,138.08,137.95,44.72966419]
[1642454946584,10.8736,138.05,137.95,44.72966419]
[1642454946783,16.8736,138.05,137.95,44.72966419]
[1642454946984,6.0,138.05,137.96,10.29]
[1642454947188,23.73846861,138.07,137.96,10.29]
[1642454947585,23.73846861,138.07,137.96,9.79]
[1642454947886,34.60806861,138.07,137.96,9.79]
[1642454948285,36.36426819,138.07,137.96,9.79]
[1642454948486,34.60806861,138.07,137.96,9.79]
[1642454948686,40.60806861,138.07,137.96,9.79]
[1642454948889,40.60806861,138.07,137.97,41.53677405]
[1642454949087,40.86806861,138.07,137.97,41.53677405]
[1642454949814,40.86806861,138.07,137.96,10.29]
[1642454950711,40.86806861,138.07,137.96,56.19928431]
[1642454950914,71.89,138.06,137.96,56.19928431]
[1642454951211,40.86806861,138.07,137.96,56.19928431]
[1642454951413,10.8716,138.04,137.96,56.19928431]
[1642454951613,42.96735658,138.03,137.96,56.19928431]
[1642454952315,48.96735658,138.03,137.96,56.19928431]
[1642454952512,6.0,138.03,137.96,56.19928431]
[1642454952912,77.89,138.07,137.96,56.19928431]
[1642454953616,117.92566959,138.07,137.96,56.19928431]
[1642454953813,128.79506959,138.07,137.97,0.25]
[1642454954013,6.0,138.07,137.98,10.29]
[1642454954216,52.5151,138.13,137.98,10.29]
[1642454954417,52.5151,138.13,137.99,0.25]
[1642454954616,52.5151,138.13,138.0,10.29]
[1642454954617,46.5151,138.13,138.0,10.29]
[1642454954819,395.92560681,138.14,138.01,0.25]
[1642454955016,10.8644,138.13,138.02,10.29]
[1642454955816,395.92560681,138.14,138.03,0.25]
[1642454956015,395.92560681,138.14,138.04,10.29]
[1642454956216,10.29,138.19,138.04,10.29]
[1642454956420,37.94029735,138.18,138.05,40.71460276]
[1642454956619,29.81431595,138.14,138.05,62.11680276]
[1642454956820,6.0,138.14,138.05,62.11680276]
[1642454957325,42.208,138.19,138.05,51.82680276]